bitfinex-derivatives/quotes_BTCF0:USTF0_20250728
["timestamp","ask_amount","ask_price","bid_price","bid_amount"]
[1753678226039,0.99508839,119350.0,119340.0,0.001]
[1753678226244,0.74508839,119350.0,119340.0,0.001]
[1753678226448,0.74508839,119350.0,119340.0,0.06117946]
[1753678226742,0.74508839,119350.0,119340.0,0.001]
[1753678227143,0.2561868,119340.0,119330.0,0.15004378]
[1753678227346,1.23320859,119340.0,119330.0,6e-08]
[1753678227642,0.167599,119310.0,119300.0,0.26434559]
[1753678227937,1.23277079,119310.0,119300.0,0.24918461]
[1753678228141,1.23277079,119310.0,119300.0,0.16263461]
[1753678228343,1.23277079,119310.0,119300.0,0.2047231]
[1753678228544,1.23277079,119310.0,119300.0,0.02412]
[1753678228848,1.25144807,119310.0,119300.0,0.02412]
[1753678229738,1.25244807,119310.0,119300.0,0.03112]
[1753678231440,1.25144807,119310.0,119300.0,0.02412]
[1753678231640,1.25244807,119310.0,119300.0,0.02512]
[1753678232334,1.25244807,119310.0,119300.0,0.07017284]
[1753678236147,1.25244807,119310.0,119300.0,0.02512]
[1753678238245,1.25244807,119310.0,119300.0,0.05509019]
[1753678238844,1.25244807,119310.0,119300.0,0.03097019]
[1753678239048,1.42008807,119310.0,119300.0,0.03097019]
[1753678241151,1.42008807,119310.0,119300.0,0.05344029]
[1753678241350,1.42008807,119310.0,119300.0,0.0234701]
[1753678242342,1.25244807,119310.0,119300.0,0.001]
[1753678242548,1.42008807,119310.0,119300.0,0.001]
[1753678242753,1.25244807,119310.0,119300.0,0.001]
[1753678244648,1.24976807,119310.0,119300.0,0.02512]
[1753678246056,0.97154628,119310.0,119300.0,0.02512]
[1753678246254,1.24976807,119310.0,119300.0,0.02512]
[1753678250168,0.55412807,119310.0,119300.0,0.05509019]
[1753678250451,1.24904807,119310.0,119300.0,0.05509019]
[1753678252154,1.24904807,119310.0,119300.0,0.03253489]
[1753678252458,1.27060807,119310.0,119300.0,0.02997019]
[1753678253553,1.27060807,119310.0,119290.0,0.12894284]
[1753678253554,0.2935529,119300.0,119290.0,0.12894284]
[1753678253758,0.57177469,119300.0,119290.0,0.12894284]
[1753678254260,0.57177469,119300.0,119290.0,0.15306284]
[1753678254453,0.57177469,119300.0,119290.0,0.09829284]
[1753678254655,0.57277469,119300.0,119290.0,0.08813284]
[1753678254951,0.57277469,119300.0,119290.0,0.04308]
[1753678255350,0.57277469,119300.0,119290.0,0.10403386]
[1753678255753,0.57277469,119300.0,119290.0,0.004]
[1753678256360,0.57277469,119300.0,119290.0,0.06395386]
[1753678256758,0.57277469,119300.0,119290.0,0.004]
[1753678256958,0.2945529,119300.0,119290.0,0.004]
[1753678257167,0.57277469,119300.0,119290.0,0.004]
[1753678258258,0.57277469,119300.0,119290.0,0.02807]
[1753678258661,0.57277469,119300.0,119290.0,0.08802386]
[1753678266066,0.57277469,119300.0,119290.0,0.02807]
[1753678267269,0.2945529,119300.0,119290.0,0.02807]
[1753678267457,0.57277469,119300.0,119290.0,0.02807]
[1753678272773,0.2945529,119300.0,119290.0,0.02807]
[1753678273071,0.57277469,119300.0,119290.0,0.02807]
[1753678275871,0.57277469,119300.0,119290.0,0.08802386]
[1753678281874,0.57277469,119300.0,119290.0,0.19570386]
[1753678282278,0.57277469,119300.0,119290.0,0.13575]
[1753678284277,0.57277469,119300.0,119290.0,0.21095772]
[1753678287782,0.57277469,119300.0,119290.0,0.13575]
[1753678288170,0.57277469,119300.0,119290.0,0.04327]
[1753678289679,0.57277469,119300.0,119290.0,0.13039]
[1753678290789,0.71219406,119300.0,119290.0,0.13039]
[1753678294795,0.71219406,119300.0,119290.0,0.11043]
[1753678299590,0.71219406,119300.0,119290.0,0.18563772]
[1753678302587,0.71219406,119300.0,119290.0,0.11043]
[1753678303194,0.71219406,119300.0,119290.0,0.07843]
[1753678305201,0.71219406,119300.0,119290.0,0.05703]
[1753678305398,0.71219406,119300.0,119290.0,0.04327]
[1753678306801,0.71219406,119300.0,119290.0,0.11043]
[1753678307002,0.71219406,119300.0,119290.0,0.13039]
[1753678308508,0.2945529,119300.0,119290.0,0.13039]
[1753678308698,0.71219406,119300.0,119290.0,0.13039]
[1753678312806,0.71219406,119300.0,119290.0,0.11043]
[1753678314912,0.71219406,119300.0,119290.0,0.17080185]
[1753678316710,0.71219406,119300.0,119290.0,0.11043]
[1753678317108,0.2945529,119300.0,119290.0,0.11043]
[1753678317308,0.71219406,119300.0,119290.0,0.11043]
[1753678320314,0.2945529,119300.0,119290.0,0.11043]
[1753678320613,0.71219406,119300.0,119290.0,0.11043]
[1753678322413,0.71219406,119300.0,119290.0,0.17080172]
[1753678322613,0.9857129,119300.0,119290.0,0.17080172]
[1753678322915,0.9856729,119300.0,119290.0,0.19025162]
[1753678323110,0.2729929,119300.0,119290.0,0.3990722]
[1753678323311,0.1819429,119300.0,119290.0,0.50632738]
[1753678323512,0.8596929,119300.0,119290.0,0.5815351]
[1753678324214,0.1686129,119300.0,119290.0,0.5815351]
[1753678324516,0.8596529,119300.0,119290.0,0.5815351]
[1753678324814,0.8596529,119300.0,119290.0,0.50632738]
[1753678325014,0.1686129,119300.0,119290.0,0.50632738]
[1753678325210,0.8596529,119300.0,119290.0,1.05911863]
[1753678325417,0.8596529,119300.0,119290.0,1.08930629]
[1753678325716,0.8596529,119300.0,119290.0,1.91465538]
[1753678325908,0.1686129,119300.0,119290.0,1.80926]
[1753678326811,0.001,119300.0,119290.0,1.80926]
[1753678327015,0.2933159,119310.0,119300.0,0.2957029]
[1753678327313,0.2933159,119310.0,119300.0,0.88098405]
[1753678327518,0.2933159,119310.0,119300.0,1.21480985]
[1753678328110,0.2933159,119310.0,119300.0,1.02505988]
[1753678328908,0.3399159,119310.0,119300.0,0.8172393]
[1753678329117,0.59051648,119310.0,119300.0,0.6496264]
[1753678329320,0.62762648,119310.0,119300.0,0.18934003]
[1753678329507,0.62762648,119310.0,119300.0,0.02599]
[1753678329508,0.83644706,119310.0,119300.0,0.02599]
[1753678329712,1.54603718,119310.0,119300.0,1e-07]
[1753678330014,0.2170929,119300.0,119290.0,0.04227915]
[1753678330208,0.91856464,119300.0,119290.0,0.04227915]
[1753678330413,0.70974406,119300.0,119290.0,0.04227915]
[1753678330811,0.70974406,119300.0,119290.0,0.07184915]
[1753678331015,0.70974406,119300.0,119290.0,0.12592915]
[1753678331217,0.70974406,119300.0,119290.0,0.14537915]
[1753678331719,0.70974406,119300.0,119290.0,0.14637915]
[1753678332820,0.57050492,119300.0,119290.0,0.14637915]
[1753678333122,0.57050492,119300.0,119290.0,0.09474915]
[1753678333821,0.57050492,119300.0,119290.0,0.07284915]
[1753678334018,0.57150492,119300.0,119290.0,0.07584915]
[1753678339118,0.57150492,119300.0,119290.0,0.04627915]
[1753678341126,0.57150492,119300.0,119290.0,0.12162824]
[1753678341830,0.57260818,119300.0,119290.0,0.12162824]
[1753678342328,0.57260818,119300.0,119290.0,0.22472824]
[1753678342720,0.29420616,119300.0,119290.0,0.22472824]
[1753678343029,0.57260818,119300.0,119290.0,0.22472824]
[1753678344431,0.27264616,119300.0,119290.0,0.22472824]
[1753678345146,0.27264616,119300.0,119290.0,0.50313026]
[1753678345432,0.27264616,119300.0,119290.0,0.22472824]
[1753678346434,0.29420616,119300.0,119290.0,0.22472824]
[1753678346630,0.57260818,119300.0,119290.0,0.22472824]
[1753678347335,0.57260818,119300.0,119290.0,0.04627915]
[1753678347531,0.57260818,119300.0,119290.0,0.02128915]
[1753678348133,0.57260818,119300.0,119290.0,0.08155604]
[1753678348333,0.57260818,119300.0,119290.0,0.10570604]
[1753678350140,0.57260818,119300.0,119290.0,0.08155604]
[1753678350437,0.31059641,119290.0,119280.0,0.07534909]
[1753678350637,1.27903843,119290.0,119280.0,0.07534909]
[1753678351026,0.2188991,119280.0,119270.0,0.19460523]
[1753678351228,0.57034112,119280.0,119270.0,0.19460523]
[1753678351439,0.57153425,119280.0,119270.0,0.19460523]
[1753678351940,0.57153425,119280.0,119270.0,0.11925614]
[1753678352837,0.57153425,119280.0,119270.0,0.13439614]
[1753678353237,0.57253425,119280.0,119270.0,0.13639614]
[1753678353437,0.57353425,119280.0,119270.0,0.13939614]
[1753678353738,0.57376102,119280.0,119270.0,0.20758614]
[1753678353932,0.57376102,119280.0,119270.0,0.22777614]
[1753678354131,0.295359,119280.0,119270.0,0.22777614]
[1753678355144,0.273799,119280.0,119270.0,0.22777614]
[1753678355334,0.273799,119280.0,119270.0,0.50617816]
[1753678357537,0.273799,119280.0,119270.0,0.22777614]
[1753678359344,0.273799,119280.0,119270.0,0.30312523]
[1753678366341,0.295359,119280.0,119270.0,0.30312523]
[1753678368255,0.57376102,119280.0,119270.0,0.30312523]
[1753678369463,0.273799,119280.0,119270.0,0.30312523]
[1753678369659,0.0034199,119280.0,119270.0,0.97710698]
[1753678369955,0.0034199,119280.0,119270.0,1.17535072]
[1753678370156,0.0034199,119280.0,119270.0,1.25069981]
[1753678370360,0.1710585,119280.0,119270.0,1.17535072]
[1753678370551,0.1710585,119280.0,119270.0,1.25069981]
[1753678370750,0.0034199,119280.0,119270.0,1.75069981]
[1753678370950,0.0034199,119280.0,119270.0,1.67535072]
[1753678371346,0.0034199,119280.0,119270.0,1.75069981]
[1753678371657,0.1710585,119280.0,119270.0,1.75069981]
[1753678372359,0.1710585,119280.0,119270.0,1.67535072]
[1753678373154,0.1710585,119280.0,119270.0,1.42535072]
[1753678375252,0.0034199,119280.0,119270.0,1.42535072]
[1753678375453,0.1710584,119280.0,119270.0,2.2199061]
[1753678375855,0.1710584,119280.0,119270.0,2.11451072]
[1753678376458,0.0034199,119280.0,119270.0,2.11451072]
[1753678376658,0.1710584,119280.0,119270.0,2.11451072]
[1753678379363,0.1710584,119280.0,119270.0,1.42535072]
[1753678379562,0.1710584,119280.0,119270.0,2.11431072]
[1753678379763,0.1710584,119280.0,119270.0,1.42535072]
[1753678379962,0.1710584,119280.0,119270.0,2.11423072]
[1753678380663,0.1710584,119280.0,119270.0,1.42535072]
[1753678380964,0.1710584,119280.0,119270.0,2.11423072]
[1753678381462,0.1710584,119280.0,119270.0,1.42535072]
[1753678381764,0.1710584,119280.0,119270.0,2.11415072]
[1753678382863,0.1710584,119280.0,119270.0,2.2195461]
[1753678386867,0.1710584,119280.0,119270.0,2.18943314]
[1753678387672,0.1710584,119280.0,119270.0,2.02175314]
[1753678388373,0.1710584,119280.0,119270.0,1.94647072]
[1753678390372,0.2760384,119280.0,119270.0,1.09001802]
[1753678390571,0.2975984,119280.0,119270.0,0.811616]
[1753678390772,0.57600042,119280.0,119270.0,0.72777614]
[1753678390975,1.26440042,119280.0,119270.0,0.62425614]
[1753678391176,1.26440042,119280.0,119270.0,0.67539021]
[1753678391674,1.26440042,119280.0,119270.0,0.69791021]
[1753678392272,0.9859984,119280.0,119270.0,0.69791021]
[1753678392472,0.9859984,119280.0,119270.0,0.19791021]
[1753678392473,1.26440042,119280.0,119270.0,0.19791021]
[1753678393678,1.26440042,119280.0,119270.0,0.14828237]
[1753678394277,1.26440042,119280.0,119270.0,0.0729983]
[1753678394876,1.26440042,119280.0,119270.0,0.0955183]
[1753678398486,1.26440042,119280.0,119270.0,0.15575594]
[1753678399386,1.26440042,119280.0,119270.0,0.0955183]
[1753678400174,1.26440042,119280.0,119270.0,0.1111883]
[1753678400484,1.26440042,119280.0,119270.0,0.20558355]
[1753678401284,1.26440042,119280.0,119270.0,0.1111883]
[1753678404593,0.9859984,119280.0,119270.0,0.1111883]
[1753678404793,1.26440042,119280.0,119270.0,0.1111883]
[1753678406789,0.9859984,119280.0,119270.0,0.1111883]
[1753678406995,1.26440042,119280.0,119270.0,0.1111883]
[1753678407396,1.26440042,119280.0,119270.0,0.18647237]
[1753678408997,1.26440042,119280.0,119270.0,0.1111883]
[1753678409994,1.26440042,119280.0,119270.0,0.0955183]
[1753678413699,0.9859984,119280.0,119270.0,0.0955183]
[1753678413900,1.26440042,119280.0,119270.0,0.0955183]
[1753678414200,0.9859984,119280.0,119270.0,0.0955183]
[1753678414603,0.9859984,119280.0,119270.0,0.1118883]
[1753678414801,0.9859984,119280.0,119270.0,0.1980283]
[1753678415405,0.9859984,119280.0,119270.0,0.1790383]
[1753678415704,1.26440042,119280.0,119270.0,0.25432237]
[1753678415897,1.26440042,119280.0,119270.0,0.1790383]
[1753678418516,1.26440042,119280.0,119270.0,0.25432237]
[1753678420912,1.26440042,119280.0,119270.0,0.22154237]
[1753678421916,0.9859984,119280.0,119270.0,0.22154237]
[1753678422115,0.9859984,119280.0,119270.0,0.25432237]
[1753678423719,1.26440042,119280.0,119270.0,0.25432237]
[1753678424420,1.26440042,119280.0,119270.0,0.22154237]
[1753678424923,1.26440042,119280.0,119270.0,0.19995237]
[1753678425222,1.26440042,119280.0,119270.0,0.17080237]
[1753678429829,1.26440042,119280.0,119270.0,0.0955183]
[1753678432729,1.26440042,119280.0,119270.0,0.17098584]
[1753678434832,1.26440042,119280.0,119270.0,0.0955183]
[1753678435832,1.26440042,119280.0,119270.0,0.17098433]
[1753678436836,1.26440042,119280.0,119270.0,0.0955183]
[1753678437034,1.26440042,119280.0,119270.0,0.17098321]
[1753678437236,1.26440042,119280.0,119270.0,0.0955183]
[1753678437736,1.26440042,119280.0,119270.0,0.1709825]
[1753678438238,1.26440042,119280.0,119270.0,0.0955183]
[1753678438635,1.26440042,119280.0,119270.0,0.17098322]
[1753678440142,1.26440042,119280.0,119270.0,0.0955183]
[1753678443446,0.9840384,119280.0,119270.0,0.1986283]
[1753678443738,0.9840384,119280.0,119270.0,0.25899788]
[1753678444444,0.57600042,119280.0,119270.0,0.24014788]
[1753678444646,1.26240042,119280.0,119270.0,0.24014788]
[1753678448745,1.40165956,119280.0,119270.0,0.24014788]
[1753678449648,1.40165956,119280.0,119270.0,0.1797783]
[1753678451345,1.40165956,119280.0,119270.0,0.38860888]
[1753678451541,1.40165956,119280.0,119270.0,0.35466888]
[1753678451838,1.40165956,119280.0,119270.0,0.1458383]
[1753678452046,1.40165956,119280.0,119270.0,0.1108983]
[1753678453547,1.40165956,119280.0,119270.0,0.1448383]
[1753678453747,1.40165956,119280.0,119270.0,0.22030322]
[1753678454052,1.40165956,119280.0,119270.0,0.18636322]
[1753678454653,1.40165956,119280.0,119270.0,0.1108983]
[1753678454951,1.40165956,119280.0,119270.0,0.18636311]
[1753678455655,1.40165956,119280.0,119270.0,0.17098311]
[1753678458546,0.1676514,119270.0,119260.0,0.17714999]
[1753678458754,0.2397455,119260.0,119250.0,0.11585936]
[1753678458951,1.39865666,119260.0,119250.0,0.08191936]
[1753678459153,1.40007656,119260.0,119250.0,0.08191936]
[1753678459354,1.40007656,119260.0,119250.0,0.09832184]
[1753678460055,1.40107656,119260.0,119250.0,0.01846805]
[1753678460458,0.9834154,119260.0,119250.0,0.01846805]
[1753678460647,1.40107656,119260.0,119250.0,0.01846805]
[1753678460848,1.26198355,119260.0,119250.0,0.01846805]
[1753678461944,1.26298355,119260.0,119250.0,0.02046805]
[1753678462149,1.26298355,119260.0,119250.0,0.08863726]
[1753678462343,1.26298355,119260.0,119250.0,0.00406557]
[1753678462953,1.26298355,119260.0,119250.0,0.02049057]
[1753678463256,0.9844154,119260.0,119250.0,0.02049057]
[1753678463456,1.26298355,119260.0,119250.0,0.02049057]
[1753678466570,1.26298355,119260.0,119250.0,0.08774235]
[1753678466870,1.26298355,119260.0,119250.0,0.02049057]
[1753678469672,1.26329515,119260.0,119250.0,0.02049057]
[1753678470076,1.26360675,119260.0,119250.0,0.02049057]
[1753678471272,1.26360675,119260.0,119250.0,0.00406557]
[1753678475981,0.9850386,119260.0,119250.0,0.00406557]
[1753678476182,1.26360675,119260.0,119250.0,0.00406557]
[1753678476881,0.9850386,119260.0,119250.0,0.00406557]
[1753678477083,1.26360675,119260.0,119250.0,0.00406557]
[1753678478576,1.26360675,119260.0,119250.0,0.02047142]
[1753678479185,0.2971094,119250.0,119240.0,0.1595996]
[1753678479386,0.57567755,119250.0,119240.0,0.14267347]
[1753678479585,0.57567755,119250.0,119240.0,0.067372]
[1753678479883,0.2971235,119240.0,119230.0,0.09217174]
[1753678480083,1.2628024,119240.0,119230.0,0.09217174]
[1753678480277,1.2608024,119240.0,119230.0,0.11469174]
[1753678480479,1.2608024,119240.0,119230.0,0.09217174]
[1753678480882,1.40021583,119240.0,119230.0,0.59217174]
[1753678481082,1.40121583,119240.0,119230.0,0.59317174]
[1753678481285,1.40321583,119240.0,119230.0,0.59317174]
[1753678481485,1.40321583,119240.0,119230.0,0.73727602]
[1753678482790,1.26386493,119240.0,119230.0,0.73727602]
[1753678483891,1.26386493,119240.0,119230.0,0.80515063]
[1753678486688,1.26386493,119240.0,119230.0,0.72984916]
[1753678487682,1.26386493,119240.0,119230.0,0.89755676]
[1753678487883,1.26386493,119240.0,119230.0,0.72984916]
[1753678489193,1.26386493,119240.0,119230.0,0.89755666]
[1753678490392,1.26386493,119240.0,119230.0,0.72984916]
[1753678491087,1.26386493,119240.0,119230.0,0.89755666]
[1753678496199,0.98523425,119240.0,119230.0,0.89755666]
[1753678496496,1.26386493,119240.0,119230.0,0.89755666]
[1753678496697,1.26413955,119240.0,119230.0,0.89755666]
[1753678498697,1.26413955,119240.0,119230.0,0.97285813]
[1753678502804,1.40343951,119240.0,119230.0,1.18182345]
[1753678503697,1.40343951,119240.0,119230.0,1.01411595]
[1753678504199,1.40343951,119240.0,119230.0,1.18182365]
[1753678507200,0.98550887,119240.0,119230.0,1.18182365]
[1753678507597,1.40343951,119240.0,119230.0,0.97285833]
[1753678507799,1.40343951,119240.0,119230.0,1.18182365]
[1753678508399,1.40343951,119240.0,119230.0,1.10652218]
[1753678509197,1.40343951,119240.0,119230.0,0.88068659]
[1753678509397,1.40343951,119240.0,119230.0,1.19508422]
[1753678510099,1.40348951,119240.0,119230.0,0.9861189]
[1753678510803,1.40348951,119240.0,119230.0,1.19508422]
[1753678511803,1.40348951,119240.0,119230.0,0.9861189]
[1753678511995,1.40348951,119240.0,119230.0,1.19508422]
[1753678512302,1.40348951,119240.0,119230.0,0.9861189]
[1753678512503,1.40348951,119240.0,119230.0,1.19508422]
[1753678512702,1.40348951,119240.0,119230.0,0.9861189]
[1753678514203,0.98555887,119240.0,119230.0,0.9861189]
[1753678514504,1.40348951,119240.0,119230.0,0.9861189]
[1753678514900,1.40348951,119240.0,119230.0,1.19508422]
[1753678516804,0.98555887,119240.0,119230.0,1.19508422]
[1753678517006,1.40348951,119240.0,119230.0,1.19508422]
[1753678519607,1.40348951,119240.0,119230.0,0.9861189]
[1753678519906,1.40348951,119240.0,119230.0,1.19508422]
[1753678522211,0.71848951,119240.0,119230.0,1.19508422]
[1753678522397,0.17112887,119240.0,119230.0,1.19508422]
[1753678522601,0.85444887,119240.0,119230.0,1.35444026]
[1753678523106,0.85444887,119240.0,119230.0,1.24900795]
[1753678523703,1.09660419,119240.0,119230.0,1.24900795]
[1753678524403,1.14550419,119240.0,119230.0,1.24900795]
[1753678524706,1.14550419,119240.0,119230.0,1.93232795]
[1753678524908,1.14538419,119240.0,119230.0,1.93232795]
[1753678525401,0.93641887,119240.0,119230.0,1.93232795]
[1753678525604,0.93641887,119240.0,119230.0,1.72336263]
[1753678525804,0.93641887,119240.0,119230.0,1.93232795]
[1753678526907,0.93641887,119240.0,119230.0,1.8568399]
[1753678527412,1.14538419,119240.0,119230.0,1.8568399]
[1753678528206,1.14538419,119240.0,119230.0,1.96227221]
[1753678529403,0.93641887,119240.0,119230.0,1.96227221]
[1753678530113,0.98246887,119240.0,119230.0,1.96227221]
[1753678532613,0.98246887,119240.0,119230.0,1.75330689]
[1753678532812,1.19143419,119240.0,119230.0,1.96227221]
[1753678533013,0.98246887,119240.0,119230.0,1.27895221]
[1753678533213,1.19143419,119240.0,119230.0,1.27895221]
[1753678534109,1.19143419,119240.0,119230.0,1.1735199]
[1753678535410,0.85432887,119240.0,119230.0,1.1735199]
[1753678537014,0.85432887,119240.0,119230.0,1.24895305]
[1753678537513,0.85432887,119240.0,119230.0,1.1735199]
[1753678537718,0.88610887,119240.0,119230.0,0.96455458]
[1753678537912,0.91587887,119240.0,119230.0,1.1735199]
[1753678538113,0.93481887,119240.0,119230.0,1.1735199]
[1753678538313,0.98086887,119240.0,119230.0,0.96455458]
[1753678538514,0.98086887,119240.0,119230.0,1.1735199]
[1753678539716,1.18983419,119240.0,119230.0,1.1735199]
[1753678540218,0.98086887,119240.0,119230.0,0.96455458]
[1753678540407,1.18983419,119240.0,119230.0,1.1735199]
[1753678540718,1.18983419,119240.0,119230.0,0.96455458]
[1753678540918,1.18983419,119240.0,119230.0,1.1735199]
[1753678541318,1.18983419,119240.0,119230.0,0.96455458]
[1753678541518,1.18983419,119240.0,119230.0,1.1735199]
[1753678542119,1.18983419,119240.0,119230.0,0.96455458]
[1753678542322,1.18983419,119240.0,119230.0,1.24895305]
[1753678542922,1.18983419,119240.0,119230.0,1.03998773]
[1753678543519,1.18983419,119240.0,119230.0,1.24895305]
[1753678543823,1.18983419,119240.0,119230.0,1.03998773]
[1753678544025,1.18983419,119240.0,119230.0,1.24895305]
[1753678544922,1.39879951,119240.0,119230.0,0.73204204]
[1753678545129,1.39879951,119240.0,119230.0,0.58503889]
[1753678545326,1.39879951,119240.0,119230.0,0.66047204]
[1753678549129,1.39879951,119240.0,119230.0,0.68469204]
[1753678551126,0.98086887,119240.0,119230.0,0.71720204]
[1753678551331,1.39879951,119240.0,119230.0,0.71720204]
[1753678551728,1.39879951,119240.0,119230.0,0.73330204]
[1753678552128,1.39879951,119240.0,119230.0,0.74663204]
[1753678552734,1.39879951,119240.0,119230.0,0.76989204]
[1753678553131,1.39879951,119240.0,119230.0,0.69445889]
[1753678553337,0.98086887,119240.0,119230.0,0.92243421]
[1753678553538,1.39879951,119240.0,119230.0,0.92243421]
[1753678553741,0.17112887,119240.0,119230.0,1.31633022]
[1753678553942,0.85312887,119240.0,119230.0,1.46053684]
[1753678554130,0.85312887,119240.0,119230.0,1.25157152]
[1753678554735,0.88490887,119240.0,119230.0,1.25157152]
[1753678555234,0.89834887,119240.0,119230.0,1.25157152]
[1753678555433,0.89834887,119240.0,119230.0,1.19123289]
[1753678556339,0.91387887,119240.0,119230.0,1.19123289]
[1753678556938,0.86656887,119240.0,119230.0,1.19123289]
[1753678557138,0.86656887,119240.0,119230.0,1.40019821]
[1753678557340,0.85312887,119240.0,119230.0,1.40019821]
[1753678557539,0.85296887,119240.0,119230.0,1.40019821]
[1753678557837,0.85296887,119240.0,119230.0,1.47563136]
[1753678559536,0.17112887,119240.0,119230.0,1.47563136]
[1753678560744,0.17112887,119240.0,119230.0,1.3362144]
[1753678563149,0.17112887,119240.0,119230.0,1.26078125]
[1753678563448,0.17112887,119240.0,119230.0,1.36621356]
[1753678574745,0.17112887,119240.0,119230.0,1.26078125]
[1753678574945,0.17112887,119240.0,119230.0,1.36626072]
[1753678577859,0.17112887,119240.0,119230.0,1.08774704]
[1753678578156,0.29844887,119240.0,119230.0,1.19855322]
[1753678578460,0.29844887,119240.0,119230.0,2.04730052]
[1753678580257,0.29844887,119240.0,119230.0,1.19855322]
[1753678580557,0.29844887,119240.0,119230.0,2.04718062]
[1753678580767,0.50736661,119240.0,119230.0,1.97758468]
[1753678583259,0.50736661,119240.0,119230.0,1.76866694]
[1753678583561,0.50736661,119240.0,119230.0,1.97758468]
[1753678584261,0.50736661,119240.0,119230.0,1.66318747]
[1753678584455,0.50736661,119240.0,119230.0,1.87210521]
[1753678584656,0.50736661,119240.0,119230.0,1.97769499]
[1753678585059,0.29844887,119240.0,119230.0,1.97769499]
[1753678585263,0.50736661,119240.0,119230.0,1.97769499]
[1753678587054,0.29844887,119240.0,119230.0,1.97769499]
[1753678589363,0.27570887,119240.0,119230.0,1.97769499]
[1753678590162,0.25600887,119240.0,119230.0,1.97769499]
[1753678590364,0.19859887,119240.0,119230.0,1.97769499]
[1753678591758,0.19859887,119240.0,119230.0,1.87210521]
[1753678592463,0.29513887,119240.0,119230.0,1.87210521]
[1753678594267,0.29513887,119240.0,119230.0,1.19118521]
[1753678594464,0.50405661,119240.0,119230.0,1.19118521]
[1753678598871,0.50405661,119240.0,119230.0,1.19118511]
[1753678599167,0.50405661,119240.0,119230.0,0.98226737]
[1753678599469,0.50405661,119240.0,119230.0,1.19118511]
[1753678601868,0.50405661,119240.0,119230.0,1.29677489]
[1753678602565,0.50405661,119240.0,119230.0,1.08785705]
[1753678602762,0.50405661,119240.0,119230.0,1.29677479]
[1753678603070,0.29513887,119240.0,119230.0,1.29677479]
[1753678603263,0.50405661,119240.0,119230.0,1.29677479]
[1753678603659,0.17112887,119240.0,119230.0,1.29677479]
[1753678603864,0.17112887,119240.0,119230.0,1.19118501]
[1753678604567,0.17112887,119240.0,119230.0,1.87130501]
[1753678604764,0.17112887,119240.0,119230.0,1.87126501]
[1753678605659,0.17112887,119240.0,119230.0,1.26664706]
[1753678605859,0.17112887,119240.0,119230.0,1.87126501]
[1753678606268,0.17112887,119240.0,119230.0,1.97685479]
[1753678606471,0.17112887,119240.0,119230.0,1.29677479]
[1753678606671,0.17112887,119240.0,119230.0,1.97681479]
[1753678612072,0.17112887,119240.0,119230.0,1.87122501]
[1753678613374,0.17112887,119240.0,119230.0,1.66230727]
[1753678613575,0.17112887,119240.0,119230.0,1.87122501]
[1753678613973,0.17112887,119240.0,119230.0,1.97685987]
[1753678614975,0.17112887,119240.0,119230.0,1.76794213]
[1753678615173,0.17112887,119240.0,119230.0,1.97685987]
[1753678616174,0.17112887,119240.0,119230.0,2.18577761]
[1753678616475,0.17112887,119240.0,119230.0,1.97685987]
[1753678618180,0.17112887,119240.0,119230.0,1.76794213]
[1753678618478,0.17112887,119240.0,119230.0,1.97685987]
[1753678621485,0.17112887,119240.0,119230.0,1.76794213]
[1753678621669,0.17112887,119240.0,119230.0,1.97685987]
[1753678623485,0.17112887,119240.0,119230.0,1.76794213]
[1753678623674,0.17112887,119240.0,119230.0,1.97685987]
[1753678623985,0.17112887,119240.0,119230.0,1.87122501]
[1753678624274,0.17112887,119240.0,119230.0,1.97685771]
[1753678624480,0.50710661,119240.0,119230.0,1.97685771]
[1753678624875,0.29818887,119240.0,119230.0,1.97685771]
[1753678625578,0.27376887,119240.0,119230.0,1.97685771]
[1753678625977,0.19914887,119240.0,119230.0,1.97685771]
[1753678627483,0.29818887,119240.0,119230.0,1.76793997]
[1753678627683,0.50710661,119240.0,119230.0,1.97685771]
[1753678628476,0.50710661,119240.0,119230.0,1.29681771]
[1753678629183,0.27376887,119240.0,119230.0,1.50573545]
[1753678629375,0.19914887,119240.0,119230.0,1.50573545]
[1753678629771,0.19914887,119240.0,119230.0,1.29681771]
[1753678630282,0.19914887,119240.0,119230.0,1.50573545]
[1753678630486,0.19914887,119240.0,119230.0,1.29681771]
[1753678633584,0.19914887,119240.0,119230.0,1.50573545]
[1753678633785,0.19914887,119240.0,119230.0,1.29681771]
[1753678633985,0.18392887,119240.0,119230.0,1.29681771]
[1753678634185,0.01823537,119240.0,119230.0,1.29681771]
[1753678634485,0.17312887,119240.0,119230.0,1.19118501]
[1753678636387,0.17312887,119240.0,119230.0,0.98226727]
[1753678636587,0.17312887,119240.0,119230.0,1.19118501]
[1753678641700,0.17312887,119240.0,119230.0,1.87034501]
[1753678644299,0.17312887,119240.0,119230.0,1.97599847]
[1753678646503,0.00543537,119240.0,119230.0,1.97599847]
[1753678646695,0.17312877,119240.0,119230.0,2.18491621]
[1753678647499,0.17312877,119240.0,119230.0,1.97599847]
[1753678653414,0.17312877,119240.0,119230.0,1.76708073]
[1753678653711,0.17312877,119240.0,119230.0,1.97599847]
[1753678654511,0.38204651,119240.0,119230.0,1.97599847]
[1753678654811,0.42737651,119240.0,119230.0,1.97599847]
[1753678655110,0.21845877,119240.0,119230.0,1.97599847]
[1753678655507,0.21845877,119240.0,119230.0,1.29683847]
[1753678656715,0.21845877,119240.0,119230.0,1.19118501]
[1753678657014,0.21845877,119240.0,119230.0,0.98226727]
[1753678657214,0.21845877,119240.0,119230.0,1.19118501]
[1753678660110,0.21845877,119240.0,119230.0,1.29686518]
[1753678665021,0.18543877,119240.0,119230.0,1.29686518]
[1753678666620,0.00543537,119240.0,119230.0,1.50578292]
[1753678667118,0.17312917,119240.0,119230.0,1.50578292]
[1753678670026,0.00543537,119240.0,119230.0,1.50578292]
[1753678670225,0.17312917,119240.0,119230.0,1.50578292]
[1753678670524,0.17312917,119240.0,119230.0,1.19118501]
[1753678673930,0.00543537,119240.0,119230.0,1.19118501]
[1753678674129,0.17312947,119240.0,119230.0,0.98226727]
[1753678674326,0.17312947,119240.0,119230.0,1.29686543]
[1753678674527,0.00543537,119240.0,119230.0,1.29686543]
[1753678674726,0.17312947,119240.0,119230.0,1.29651325]
[1753678675324,0.17312947,119240.0,119230.0,1.19083283]
[1753678675729,0.17312947,119240.0,119230.0,1.29651338]
[1753678678129,0.17312947,119240.0,119230.0,1.08759564]
[1753678678329,0.17312947,119240.0,119230.0,1.29651338]
[1753678684238,0.17312947,119240.0,119230.0,1.19083283]
[1753678684437,0.17312947,119240.0,119230.0,1.29651348]
[1753678685535,0.00543537,119240.0,119230.0,1.50543122]
[1753678685736,0.17312937,119240.0,119230.0,1.50543122]
[1753678685935,0.17312937,119240.0,119230.0,1.29651348]
[1753678686336,0.00543537,119240.0,119230.0,1.29651348]
[1753678686734,0.00543537,119240.0,119230.0,1.50543122]
[1753678687139,0.17312997,119240.0,119230.0,1.08759574]
[1753678687637,0.17312997,119240.0,119230.0,1.29651348]
[1753678688837,0.17312997,119240.0,119230.0,1.19083283]
[1753678695242,0.00543537,119240.0,119230.0,1.19083283]